Workbook

Sheet Notes
A1: Welcome To OptionMath.com
A3: This OptionMath.com spreadsheet is intended as a companion for the books "Options Math" and "The Complete Book of Options Spreads and Combinations" by Scott Nations and published By John Wiley & Sons
A5: If you have any questions, suggestions for this workbook or even have a bug to report, please feel free to email us at Questions@OptionMath.com
A7: Macros must be enabled for the calculator to operate.
A9: Option Price Calculator
A10: The worksheet labelled Option Price Calculator is a simple option pricer. Directions for use are included.
A11: Enter the requested option parameters in the dark blue cells.
A12: Output values will be displayed underneath in the light blue shaded cells.
A14: Implied Volatility Calculator
A15: The Implied Volatility Calculator spreadsheet allows you to calculate the volatility implied by observed option prices
A16: Enter the requested option parameters in the dark blue cells.
A17: Output values will be displayed underneath in the light blue shaded cells.
A19: Spread Calculator
A20: In order to calculate the theoretical price, implied volatilities, or total greeks for any spread or combination simply calculate for each leg independently and then add or subtract.

Sheet Option Price Calculator
A1: OptionMath.com
A2: Option Price Calculator
B4: The Inputs
B5: Price of Underlying Stock | C5: 20 | D5: The current price of the stock or ETF
B6: Strike Price | C6: 22 | D6: The strike price of the option
B7: Today's Date | C7: =TODAY() -> 2024-10-31
B8: Expiration Date | C8: 2025-07-19 | D8: The expiration date of the option (if you're Interested In a hypothectical option with "X" days to expiration simply make this cell's formula today's date, Cell C6, plus X.
B9: Volatility | C9: 0.2 | D9: The historical volatility of the underlying stock or your best guess of the realized volatility for the term of the option
B10: Risk Free Rate | C10: 0.05 | D10: The current risk free interest rate. The 30-day T-bill rate is standard
B11: Dividened Yield | C11: 0 | D11: The annualized dividend yield. Dividends present special problems for all calculators. We'll discuss further in the endnotes page
B12: DTE (Years) | C12: =(C8-C7)/365 -> 0.7150684932
B13: The Outputs
C14: Call Option | D14: Put Option
B15: Theoretical Option Value | C15: =CallOption(C5,C6,((C8-C7)/365),C10,C9,C11) -> 0.8605187517 | D15: =PutOption(C5,C6,((C8-C7)/365),C10,C9,C11) -> 2.087838697
B16: Delta | C16: =CallDelta(C5,C6,((C8-C7)/365),C10,C9,C11) -> 0.3945082781 | D16: =Putdelta(C5,C6,((C8-C7)/365),C10,C9,C11) -> -0.6054917219 | E16: The amount by which we would expect the option price to change for each $1 change in the price of the undelrying stock. Delta is also the percentage likelihood that the option will be ITM at expiration.
B17: Gamma | C17: =Gamma1(C5,C6,((C8-C7)/365),C10,C9,C11) -> 0.1137962102 | D17: =Gamma1(C5,C6,((C8-C7)/365),C10,C9,C11) -> 0.1137962102 | E17: The amount by which the option's Delta will change with a $1 change in the price of the undelrying stock.
B18: Theta | C18: =CallTheta(C5,C6,((C8-C7)/365),C10,C9,C11) -> -0.003457128829 | D18: =PutTheta(C5,C6,((C8-C7)/365),C10,C9,C11) -> -0.0005492767814 | E18: The amount by which the option's price will change given the passage of a single day. Note that the option's value will always be expected to decline.
B19: Vega | C19: =vega(C5,C6,((C8-C7)/365),C10,C9,C11) -> 0.06509766767 | D19: =vega(C5,C6,((C8-C7)/365),C10,C9,C11) -> 0.06509766767 | E19: The amount by which the option's price will change given a 1% (i.e. from 20% to 21%) change in the volatility input.
B20: Rho | C20: =CallRho(C5,C6,((C8-C7)/365),C10,C9,C11) -> 0.05026678952 | D20: =PutRho(C5,C6,((C8-C7)/365),C10,C9,C11) -> -0.1015230874 | E20: The amount by which the option's price will change given a 1% (i.e. from 1% to 2%) change in the interest rate input.

Sheet Implied Volatility Calculator
A1: OptionMath.com
A2: Implied Volatility Calculator
B4: The Inputs
B5: Price of Underlying Stock | C5: 20 | D5: The current price of the stock or ETF
B6: Strike Price | C6: 20 | D6: The strike price of the option
B7: Option Type (P for Put or C for Call) | C7: p | D7: The type of option. C for call, P for put.
B8: Observed Option Price | C8: 1 | D8: The current price of the option. The average of the bid price and ask price is best.
B9: Today's Date | C9: =TODAY() -> 2024-10-31
B10: Expiration Date | C10: 2025-07-19 | D10: The expiration date of the option (if you're Interested In a hypothectical option with "X" days to expiration simply make this cell's formula today's date, Cell C6, plus X.
B11: Risk Free Rate | C11: 0.05 | D11: The current risk free interest rate. The 30-day T-bill rate is standard
B12: Dividened Yield | C12: 0 | D12: The annualized dividend yield. Dividends present special problems for all calculators. We'll discuss further in the endnotes page
B13: DTE (Years) | C13: =(C10-C9)/365 -> 0.7150684932
B14: The Outputs
C15: =IF(C7="C","Call Option",IF(C7="P","Put Option","Option Type?")) -> Put Option
B16: Option Implied Volatility | C16: =IF(C7="C",ImpliedCallVolatility(C5,C6,((C10-C9)/365),C11,C8,C12),IF(C7="P",ImpliedPutVolatility(C5,C6,((C10-C9)/365),C11,C8,C12),"Option Type?")) -> 0.1996231079 | D16: The volatility for the term of the option implied by the observed option price.
B17: Delta | C17: =IF(C7="C",CallDelta(C5,C6,((C10-C9)/365),C11,C16,C12),IF(C7="P",Putdelta(C5,C6,((C10-C9)/365),C11,C16,C12),"Option Type?")) -> -0.3835364556 | D17: The amount by which we would expect the option price to change for each $1 change in the price of the undelrying stock. Delta is also the percentage likelihood that the option will be ITM at expiration.
B18: Gamma | C18: =IF(C7="C",Gamma1(C5,C6,((C10-C9)/365),C11,C16,C12),IF(C7="P",Gamma1(C5,C6,((C10-C9)/365),C11,C16,C12),"Option Type?")) -> 0.1130949979 | D18: The amount by which the option's Delta will change with a $1 change in the price of the undelrying stock.
B19: Theta | C19: =IF(C7="C",CallTheta(C5,C6,((C10-C9)/365),C11,C16,C12),IF(C7="P",PutTheta(C5,C6,((C10-C9)/365),C11,C16,C12),"Option Type?")) -> -0.001281705153 | D19: The amount by which the option's price will change given the passage of a single day. Note that the option's value will always be expected to decline.
B20: Vega | C20: =IF(C7="C",vega(C5,C6,((C10-C9)/365),C11,C16,C12),IF(C7="P",vega(C5,C6,((C10-C9)/365),C11,C16,C12),"Option Type?")) -> 0.06457461771 | D20: The amount by which the option's price will change given a 1% (i.e. from 20% to 21%) change in the volatility input.
B21: Rho | C21: =IF(C7="C",CallRho(C5,C6,((C10-C9)/365),C11,C16,C12),IF(C7="P",PutRho(C5,C6,((C10-C9)/365),C11,C16,C12),"Option Type?")) -> -0.06200084982 | D21: The amount by which the option's price will change given a 1% (i.e. from 1% to 2%) change in the interest rate input.
